bitfinex/quotes_SOLUSD_20240614
["timestamp","ask_amount","ask_price","bid_price","bid_amount"]
[1718381861703,0.17,141.99,141.88,8.3363]
[1718381862036,0.34,141.99,141.88,8.3363]
[1718381862208,14.1674275,141.98,141.88,8.3363]
[1718381862607,14.1674275,141.98,141.89,0.17]
[1718381862851,14.1674275,141.98,141.88,8.3363]
[1718381863004,100.0,141.95,141.84,21.756]
[1718381863336,0.34,141.94,141.84,21.756]
[1718381863525,0.17,141.94,141.84,21.756]
[1718381863731,14.1674275,141.98,141.84,21.756]
[1718381863899,0.17,141.97,141.84,21.756]
[1718381864100,100.0,141.96,141.84,21.756]
[1718381864402,0.17,141.93,141.84,21.756]
[1718381864657,0.34,141.93,141.84,21.756]
[1718381865313,100.0,141.94,141.81,8.8434]
[1718381865506,14.1674275,141.98,141.81,8.8434]
[1718381865507,0.17,141.91,141.81,8.8434]
[1718381865707,0.17,141.89,141.81,8.8434]
[1718381865911,128.205625,141.96,141.81,8.8434]
[1718381866229,100.0,141.94,141.81,8.8434]
[1718381866534,0.17,141.92,141.81,8.8434]
[1718381866740,0.17,141.9,141.81,8.8434]
[1718381866905,0.68,141.9,141.81,8.8434]
[1718381867416,0.17,141.87,141.76,20.4393]
[1718381867661,0.34,141.87,141.76,20.4393]
[1718381867866,0.17,141.87,141.76,20.4393]
[1718381868039,0.17,141.88,141.76,20.4393]
[1718381868239,0.68,141.88,141.76,20.4393]
[1718381868641,0.17,141.86,141.76,20.4393]
[1718381869249,100.0,141.91,141.76,20.4393]
[1718381869464,0.17,141.9,141.77,0.17]
[1718381870148,0.17,141.9,141.77,0.51]
[1718381870561,120.4393,141.93,141.77,0.51]
[1718381870877,100.0,141.93,141.77,0.51]
[1718381871341,100.0,141.93,141.78,0.17]
[1718381871543,100.0,141.97,141.78,21.69]
[1718381871736,29.0416,142.03,141.8,0.17]
[1718381871737,120.6093,141.99,141.8,0.17]
[1718381871960,120.6093,141.99,141.8,0.51]
[1718381872162,100.0,141.97,141.81,0.17]
[1718381872345,100.0,141.95,141.8,0.34]
[1718381872560,100.0,141.95,141.81,0.17]
[1718381872773,100.0,141.95,141.81,0.51]
[1718381872955,100.0,141.95,141.76,20.4393]
[1718381872956,100.0,141.9,141.76,20.4393]
[1718381873347,102.78502921,141.9,141.76,20.4393]
[1718381873554,0.17,141.92,141.76,20.4393]
[1718381873755,0.17,141.9,141.76,20.4393]
[1718381874083,0.17,141.92,141.77,0.34]
[1718381874247,100.0,141.93,141.77,0.34]
[1718381874452,100.0,141.97,141.78,0.34]
[1718381874786,100.0,141.93,141.78,0.34]
[1718381874949,100.0,141.91,141.77,0.17]
[1718381875160,100.0,141.93,141.76,20.4393]
[1718381875497,100.0,141.87,141.76,20.4393]
[1718381875990,0.68,141.86,141.76,20.4393]
[1718381876667,0.17,141.84,141.76,20.4393]
[1718381876982,0.51,141.84,141.76,20.4393]
[1718381877451,0.17,141.83,141.76,20.4393]
[1718381877653,0.17,141.82,141.76,20.4393]
[1718381877856,0.51,141.82,141.76,20.4393]
[1718381878380,0.17,141.82,141.76,20.4393]
[1718381878547,100.0,141.85,141.76,20.4393]
[1718381878749,0.17,141.84,141.76,20.4393]
[1718381878981,0.34,141.84,141.76,20.4393]
[1718381879181,0.51,141.84,141.73,9.1101766]
[1718381879355,0.17,141.83,141.73,9.1101766]
[1718381879973,0.51,141.84,141.73,9.1101766]
[1718381880854,0.17,141.82,141.73,9.1101766]
[1718381881057,0.51,141.82,141.73,9.1101766]
[1718381881657,0.34,141.82,141.73,9.1101766]
[1718381882177,0.17,141.82,141.73,9.1101766]
[1718381882379,100.0,141.85,141.73,9.1101766]
[1718381883062,100.0,141.88,141.73,9.1101766]
[1718381883063,100.0,141.83,141.73,9.1101766]
[1718381883261,100.0,141.85,141.73,9.1101766]
[1718381883476,100.0,141.84,141.73,9.1101766]
[1718381883675,100.0,141.81,141.73,9.1101766]
[1718381883986,200.0,141.86,141.73,9.1101766]
[1718381884174,100.0,141.86,141.73,9.1101766]
[1718381884373,100.0,141.84,141.73,9.1101766]
[1718381885083,100.0,141.8,141.73,0.8354766]
[1718381885259,0.68,141.79,141.73,0.8354766]
[1718381885760,0.51,141.79,141.73,0.8354766]
[1718381886422,0.17,141.77,141.73,0.8354766]
[1718381886562,0.34,141.77,141.73,0.8354766]
[1718381886763,0.17,141.76,141.73,0.8354766]
[1718381886988,0.17,141.77,141.73,0.8354766]
[1718381887188,100.0,141.81,141.73,0.8354766]
[1718381887189,100.0,141.84,141.73,0.8354766]
[1718381887383,100.0,141.89,141.74,28.5813]
[1718381887688,100.0,141.92,141.74,28.5813]
[1718381887988,120.4393,141.93,141.74,28.5813]
[1718381887989,20.4393,141.93,141.74,149.7613]
[1718381888157,100.0,141.95,141.77,0.17]
[1718381888355,100.0,141.92,141.77,0.51]
[1718381888685,100.0,141.92,141.74,28.5813]
[1718381888878,100.0,141.95,141.75,100.68]
[1718381889185,100.0,142.0,141.81,0.17]
[1718381889358,100.0,141.96,141.81,0.51]
[1718381889563,100.0,141.98,141.81,0.51]
[1718381889794,200.0,141.99,141.82,0.17]
[1718381889973,28.198478,142.0,141.83,21.4751]
[1718381890173,28.198478,142.0,141.85,8.6111]
[1718381890375,100.0,142.03,141.86,0.17]
[1718381890578,6.66246715,142.44,141.86,0.17]
[1718381890579,228.18657,142.07,141.86,0.68]
[1718381891090,100.0,142.09,141.88,0.17]
[1718381891293,100.0,142.03,141.88,0.34]
[1718381891458,100.0,142.08,141.89,0.34]
[1718381891663,128.180998,142.09,141.91,20.5948]
[1718381891897,128.180998,142.09,141.92,0.51]
[1718381892063,100.0,142.08,141.92,0.51]
[1718381892263,128.180998,142.09,141.93,8.4267]
[1718381892464,100.0,142.11,141.94,0.51]
[1718381892684,100.0,142.11,141.95,0.17]
[1718381893271,100.0,142.1,141.94,0.51]
[1718381893866,100.0,142.06,141.93,8.4267]
[1718381894097,100.0,142.03,141.93,8.4267]
[1718381894263,200.0,142.05,141.93,8.4267]
[1718381894585,100.0,142.09,141.93,8.4267]
[1718381894794,100.0,142.1,141.93,8.4267]
[1718381894961,20.7648,142.12,141.93,29.6067]
[1718381895281,100.0,142.13,141.94,21.18]
[1718381895480,35.78747783,142.23,141.94,21.18]
[1718381895481,28.172946,142.15,141.97,8.31]
[1718381895692,28.172946,142.15,141.99,0.17]
[1718381895860,100.0,142.15,141.99,0.34]
[1718381896064,100.0,142.17,142.01,0.17]
[1718381896283,8.31,142.18,142.01,0.34]
[1718381896494,100.0,142.17,142.02,0.34]
[1718381896668,100.0,142.17,142.03,0.17]
[1718381896881,100.0,142.15,142.02,0.17]
[1718381897079,100.0,142.15,142.01,0.17]
[1718381897304,8.31,142.18,142.01,0.51]
[1718381897600,100.0,142.16,142.01,0.51]
[1718381897779,100.0,142.17,141.97,8.31]
[1718381897965,100.0,142.16,141.97,8.31]
[1718381898288,208.31,142.18,141.98,42.38]
[1718381898479,100.0,142.15,141.98,42.38]
[1718381898985,0.17,142.12,141.97,8.31]
[1718381899290,0.17,142.1,141.97,8.31]
[1718381899510,0.17,142.07,141.97,8.31]
[1718381899694,100.0,142.08,141.97,8.31]
[1718381900183,100.0,142.1,141.97,8.31]
[1718381900564,100.0,142.14,141.97,8.31]
[1718381900866,0.17,142.13,141.97,8.31]
[1718381901067,7.21787326,142.15,141.98,42.72]
[1718381901281,100.0,142.16,141.98,42.72]
[1718381901488,8.31,142.18,141.98,42.72]
[1718381901776,108.31,142.18,141.99,0.34]
[1718381901962,100.0,142.16,142.0,0.34]
[1718381902167,8.31,142.18,142.01,0.17]
[1718381902492,0.8354766,142.22,142.04,0.17]
[1718381902792,0.8354766,142.22,142.05,50.5773]
[1718381903002,2.815407,142.19,142.06,0.51]
[1718381903511,100.8354766,142.22,142.06,0.51]
[1718381903512,0.8354766,142.22,142.06,0.51]
[1718381904172,0.8354766,142.22,142.07,0.17]
[1718381904501,0.8354766,142.22,142.12,0.17]
[1718381904712,0.8354766,142.22,142.12,0.68]
[1718381905504,0.8354766,142.22,142.12,0.34]
[1718381905704,0.8354766,142.22,142.13,0.34]
[1718381906000,0.8354766,142.22,142.14,0.34]
[1718381906208,0.8354766,142.22,142.12,0.17]
[1718381906413,0.8354766,142.22,142.12,0.34]
[1718381906579,0.8354766,142.22,142.12,0.51]
[1718381907180,0.8354766,142.22,142.13,0.17]
[1718381907405,28.139373,142.31,142.13,0.51]
[1718381907618,200.0,142.34,142.16,0.17]
[1718381907912,228.133589,142.34,142.16,0.17]
[1718381908200,228.133589,142.34,142.16,0.51]
[1718381908201,128.133589,142.34,142.16,0.51]
[1718381908405,100.0,142.34,142.18,50.6479]
[1718381908603,100.0,142.34,142.19,0.51]
[1718381908807,100.0,142.34,142.19,0.34]
[1718381909103,200.0,142.34,142.18,50.6479]
[1718381909419,200.0,142.34,142.19,0.34]
[1718381909622,200.0,142.34,142.18,8.2679]
[1718381910091,100.0,142.33,142.18,8.2679]
[1718381910284,200.0,142.35,142.19,0.17]
[1718381910601,100.0,142.34,142.18,8.2679]
[1718381911305,100.0,142.34,142.18,50.6479]
[1718381911501,0.8354766,142.36,142.18,50.6479]
[1718381911502,100.8354766,142.36,142.18,50.6479]
[1718381912093,100.8354766,142.36,142.19,0.68]
[1718381913023,100.8354766,142.36,142.18,50.6479]
[1718381913024,100.0,142.3,142.18,8.2679]
[1718381913182,107.22818957,142.35,142.18,8.2679]
[1718381913502,100.0,142.35,142.18,8.2679]
[1718381914085,100.0,142.31,142.18,8.2679]
[1718381914289,100.8354766,142.36,142.18,8.2679]
[1718381914290,100.0,142.33,142.18,8.2679]
[1718381914510,100.8354766,142.36,142.18,8.2679]
[1718381914511,100.0,142.31,142.18,8.2679]
[1718381914691,100.0,142.34,142.18,8.2679]
[1718381914692,0.51,142.3,142.18,8.2679]
[1718381915997,0.34,142.29,142.18,8.2679]
[1718381916195,0.17,142.27,142.18,8.2679]
[1718381916709,26.0214,142.19,142.18,8.2679]
[1718381917310,0.34,142.27,142.18,8.2679]
[1718381917485,0.17,142.19,142.14,22.1773]
[1718381917994,0.17,142.23,142.14,22.1773]
[1718381918218,2.6023,142.18,142.14,22.1773]
[1718381918428,23.4167,142.21,142.14,22.1773]
[1718381918593,2.6017,142.22,142.15,2.6027]
[1718381918794,35.99954411,142.36,142.19,42.38]
[1718381918795,100.8354766,142.36,142.19,42.38]
[1718381918994,100.8354766,142.36,142.21,50.4659]
[1718381919328,100.0,142.34,142.21,8.0859]
[1718381919529,7.8028,142.26,142.21,8.0859]
[1718381919691,10.4033,142.27,142.15,8.0859]
[1718381919692,100.0,142.27,142.15,8.0859]
[1718381920022,2.6018,142.21,142.15,8.0859]
[1718381920203,7.805,142.22,142.15,15.8943]
[1718381920518,7.8053,142.21,142.15,8.0859]
[1718381920693,7.8054,142.21,142.15,8.0859]
[1718381920895,2.602,142.2,142.15,8.0859]
[1718381921200,0.17,142.24,142.18,10.4092]
[1718381921419,5.203,142.23,142.16,2.6026]
[1718381921608,2.6012,142.24,142.18,2.6022]
[1718381921803,67.90487788,142.78,142.21,2.6017]
[1718381921804,2.6007,142.27,142.21,2.6017]
[1718381922126,100.0,142.34,142.2,0.17]
[1718381922287,2.6009,142.26,142.2,2.7719]
[1718381922812,23.4032,142.29,142.22,2.6015]
[1718381923128,5.2007,142.29,142.23,0.17]
[1718381923293,100.8354766,142.36,142.23,0.17]
[1718381923491,5.1998,142.32,142.25,2.6009]
[1718381923710,25.9984,142.32,142.25,7.8029]
[1718381923955,2.5999,142.31,142.25,2.6009]
[1718381924091,7.7984,142.34,142.27,10.7285]
[1718381924285,7.7987,142.33,142.27,8.1279]
[1718381924511,0.8354766,142.36,142.27,8.1279]
[1718381924512,2.6004,142.29,142.27,8.1279]
[1718381924715,100.8354766,142.36,142.27,8.1279]
[1718381924926,0.8354766,142.36,142.27,8.1279]
[1718381925337,6.0336766,142.36,142.28,10.5718]
[1718381925620,0.8354766,142.36,142.29,0.17]
[1718381925829,0.8354766,142.36,142.3,26.0005]
[1718381926021,0.8354766,142.36,142.31,2.5999]
[1718381926202,0.8354766,142.36,142.31,5.1997]
[1718381926409,0.8354766,142.36,142.31,7.7997]
[1718381926613,0.8354766,142.36,142.28,0.17]
[1718381926813,24.2278766,142.36,142.29,2.6002]
[1718381926998,0.8354766,142.36,142.3,5.2001]
[1718381927204,0.8354766,142.36,142.31,2.5998]
[1718381927404,0.8354766,142.36,142.32,2.5997]
[1718381927627,0.8354766,142.36,142.28,0.34]
[1718381927809,12.9965,142.35,142.28,5.541]
[1718381928008,0.8354766,142.36,142.28,0.34]
[1718381928326,2.5994,142.34,142.28,0.34]
[1718381928496,3.4345766,142.36,142.28,10.7418]
[1718381928694,236.499469,142.47,142.3,10.3998]
[1718381928899,23.3885,142.38,142.31,0.34]
[1718381929195,2.5992,142.35,142.28,10.5718]
[1718381929396,100.0,142.42,142.27,8.4679]
[1718381929606,21.18,142.44,142.27,8.4679]
[1718381929607,2.5991,142.36,142.28,8.1413]
[1718381929796,100.0,142.42,142.28,0.34]
[1718381930109,100.0,142.37,142.27,8.1279]
[1718381930311,100.0,142.36,142.27,8.1279]
[1718381930617,7.8015,142.28,142.27,8.1279]
[1718381930927,100.0,142.34,142.22,8.2948]
[1718381931124,0.17,142.29,142.22,8.2948]
[1718381931449,0.17,142.3,142.22,8.2948]
[1718381931739,15.6037,142.28,142.22,8.2948]
[1718381931941,0.34,142.3,142.22,8.2948]
[1718381932252,2.601,142.25,142.22,8.2948]
[1718381932605,2.6014,142.23,142.19,20.4251]
[1718381932808,0.34,142.3,142.19,20.4251]
[1718381932809,2.6016,142.22,142.19,20.4251]
[1718381933200,0.17,142.28,142.19,20.4251]
[1718381933530,0.17,142.28,142.17,8.1997]
[1718381933531,26.0185,142.21,142.17,8.1997]
[1718381933700,0.68,142.28,142.17,8.1997]
[1718381933701,7.8049,142.22,142.17,8.1997]
[1718381933899,7.8038,142.24,142.18,2.6022]
[1718381934097,2.6016,142.22,142.17,8.1997]
[1718381934326,2.6018,142.21,142.17,8.1997]
[1718381934504,23.4147,142.22,142.17,3.1997]
[1718381934819,0.34,142.25,142.17,3.1997]
[1718381934820,5.203,142.23,142.17,3.1997]
[1718381935004,7.8048,142.22,142.17,3.1997]
[1718381935209,5.2029,142.23,142.17,3.1997]
[1718381935407,0.17,142.25,142.17,3.1997]
[1718381935630,5.3722,142.25,142.18,2.6022]
[1718381935930,0.34,142.24,142.17,3.1997]
[1718381936241,100.0,142.32,142.17,3.1997]
[1718381936462,2.6005,142.28,142.22,2.6014]
[1718381936733,100.0,142.34,142.2,7.8057]
[1718381936734,2.6007,142.27,142.2,7.8057]
[1718381936955,100.0,142.34,142.2,7.8055]
[1718381937111,100.0,142.34,142.21,5.5435]
[1718381937311,23.4034,142.29,142.22,2.6015]
[1718381937557,2.6006,142.28,142.22,2.6015]
[1718381938050,23.4045,142.28,142.21,2.9416]
[1718381938263,100.0,142.34,142.18,0.34]
[1718381938544,100.0,142.34,142.22,2.6015]
[1718381938545,2.6005,142.28,142.22,2.6015]
[1718381938847,23.4033,142.29,142.22,23.4137]
[1718381938848,7.8009,142.29,142.22,23.4137]
[1718381939141,15.601,142.3,142.23,18.2097]
[1718381939306,100.0,142.38,142.24,5.2024]
[1718381939511,5.1995,142.32,142.26,2.6008]
[1718381939839,2.5993,142.35,142.29,2.6002]
[1718381940131,8.9596,142.42,142.28,8.1996]
[1718381940132,2.5998,142.32,142.28,8.1996]
[1718381940362,2.6003,142.29,142.24,20.6716]
[1718381940530,2.6003,142.29,142.15,29.19]
[1718381940531,100.0,142.31,142.17,8.751]
[1718381940841,2.6014,142.23,142.17,11.3534]
[1718381941056,100.0,142.29,142.17,8.751]
[1718381941360,100.0,142.32,142.17,8.751]
[1718381941361,0.17,142.28,142.17,8.751]
[1718381941642,0.17,142.22,142.17,8.751]
[1718381941810,7.8043,142.23,142.17,8.751]
[1718381942012,7.8049,142.22,142.17,8.751]
[1718381942214,2.7703,142.29,142.2,26.0184]
[1718381942512,7.8001,142.31,142.24,2.6012]
[1718381942761,10.3995,142.32,142.24,13.006]
[1718381942930,10.3973,142.35,142.27,15.6033]
[1718381943132,10.3973,142.35,142.19,63.56]
[1718381943133,100.0,142.35,142.21,5.2034]
[1718381943434,100.0,142.41,142.22,0.51]
[1718381943435,2.5997,142.33,142.22,0.51]
[1718381943632,7.7992,142.32,142.26,2.6007]
[1718381943841,42.375,142.42,142.22,0.34]
[1718381943842,100.0,142.35,142.22,0.34]
[1718381944144,100.0,142.35,142.17,8.751]
[1718381944145,10.4008,142.3,142.17,8.751]
[1718381944349,100.0,142.32,142.19,5.2042]
[1718381944538,100.0,142.3,142.17,8.751]
[1718381944726,0.17,142.26,142.17,8.751]
[1718381944928,2.6019,142.21,142.17,8.751]
[1718381945150,100.0,142.31,142.17,8.751]
[1718381945355,10.0,142.38,142.17,8.751]
[1718381945356,2.6018,142.21,142.17,8.751]
[1718381945674,0.17,142.28,142.17,8.751]
[1718381945972,2.6021,142.19,142.17,8.751]
[1718381946267,100.51,142.28,142.12,8.6516]
[1718381946268,23.423,142.17,142.12,8.6516]
[1718381946492,10.4108,142.16,142.12,8.6516]
[1718381946631,10.4108,142.16,142.1,20.7505]
[1718381946632,0.17,142.16,142.1,20.7505]
[1718381946832,100.0,142.23,142.07,8.6516]
[1718381946833,23.4297,142.13,142.07,8.6516]
[1718381947069,2.6029,142.15,142.08,18.2284]
[1718381947236,0.17,142.18,142.12,2.6032]
[1718381947436,0.51,142.22,142.07,51.0316]
[1718381947437,13.0093,142.21,142.07,51.0316]
[1718381947734,23.4199,142.19,142.12,2.6032]
[1718381948066,0.17,142.24,142.07,8.6516]
[1718381948364,2.6014,142.24,142.17,7.8075]
[1718381948526,8.2035,142.33,142.11,42.38]
[1718381948527,200.0,142.28,142.14,7.8088]
[1718381948735,100.0,142.31,142.18,2.6022]
[1718381948967,108.2035,142.33,142.22,2.6015]
[1718381948968,23.4039,142.29,142.22,2.6015]
[1718381949163,7.802,142.27,142.2,13.0095]
[1718381949383,100.0,142.33,142.19,8.4482]
[1718381949656,30.5272,142.37,142.19,11.0501]
[1718381949657,100.0,142.31,142.19,11.0501]
[1718381949833,2.6012,142.24,142.19,8.4482]
[1718381950035,2.6011,142.25,142.19,11.0503]
[1718381950242,100.0,142.33,142.19,8.4482]
[1718381950542,2.602,142.2,142.14,11.6063]
[1718381950743,2.6023,142.18,142.14,9.0034]
[1718381950976,100.0,142.26,142.14,9.0034]
[1718381951273,100.0,142.33,142.2,5.2037]
[1718381951489,100.0,142.34,142.14,9.0034]
[1718381951644,2.6015,142.23,142.14,9.0034]
[1718381951844,200.0,142.34,142.14,9.0034]
[1718381952044,100.0,142.34,142.14,9.0034]
[1718381952244,2.6003,142.29,142.23,2.6013]
[1718381952443,100.0,142.37,142.24,23.4096]
[1718381952643,13.0002,142.31,142.24,2.6011]
[1718381952872,13.0002,142.31,142.22,0.17]
[1718381952873,7.7989,142.33,142.26,13.004]
[1718381953084,100.0,142.37,142.25,8.9182]
[1718381953449,100.0,142.36,142.25,8.9182]
[1718381953850,2.6003,142.29,142.25,8.9182]
[1718381954080,100.0,142.36,142.25,8.9182]
[1718381954081,7.8016,142.28,142.25,8.9182]
[1718381954251,5.2004,142.3,142.25,8.9182]
[1718381954445,2.6011,142.25,142.2,8.2871]
[1718381954660,100.0,142.32,142.2,8.2871]
[1718381954869,5.2036,142.21,142.15,30.9154]
[1718381955179,0.17,142.22,142.15,30.9154]
[1718381955389,2.602,142.2,142.1,8.6115]
[1718381955561,23.4181,142.2,142.13,26.0316]
[1718381955748,0.17,142.25,142.1,50.9915]
[1718381956144,7.8037,142.24,142.18,2.6023]
[1718381956352,2.6015,142.23,142.17,2.6024]
[1718381956564,8.9875,142.31,142.17,2.6024]
[1718381956565,100.0,142.33,142.17,42.38]
[1718381956864,100.0,142.33,142.2,2.6019]
[1718381957076,2.6005,142.28,142.15,42.38]
[1718381957375,2.6007,142.27,142.21,2.6017]
[1718381957571,108.3195,142.36,142.22,0.17]
[1718381957572,100.0,142.35,142.22,0.17]
[1718381957802,100.0,142.34,142.21,26.7243]
[1718381958082,100.0,142.35,142.22,5.373]
[1718381958083,5.2007,142.29,142.22,5.373]
[1718381958290,23.4016,142.3,142.23,23.4124]
[1718381958492,7.799,142.33,142.27,2.6006]
[1718381958661,2.5996,142.33,142.27,7.8018]
[1718381958860,100.0,142.38,142.25,10.404]
[1718381959063,100.0,142.41,142.27,5.2011]
[1718381959064,5.1988,142.34,142.27,5.2011]
[1718381959285,2.5995,142.34,142.28,2.6004]
[1718381959486,2.5995,142.34,142.27,18.2041]
[1718381959487,5.199,142.34,142.27,23.4051]
[1718381959691,2.5996,142.33,142.27,2.6005]
[1718381959991,100.0,142.38,142.26,0.34]
[1718381960214,2.5998,142.32,142.26,2.7707]
[1718381960490,100.0,142.36,142.22,13.0077]
[1718381960694,13.0026,142.28,142.21,54.2805]
[1718381960861,2.6003,142.29,142.23,15.608]
[1718381961190,100.0,142.39,142.24,2.601]
[1718381961521,2.6,142.31,142.25,7.803]
[1718381961686,2.5996,142.33,142.27,7.8016]
[1718381961858,8.8718,142.42,142.22,42.38]
[1718381962061,7.7971,142.36,142.24,0.17]
[1718381962292,2.5993,142.35,142.29,7.8007]
[1718381962490,2.5991,142.36,142.3,23.4007]
[1718381962673,5.1989,142.34,142.28,0.17]
[1718381962866,7.31791038,142.44,142.27,0.17]
[1718381963071,7.7978,142.35,142.29,2.6002]
[1718381963389,7.7983,142.34,142.28,2.6003]
[1718381963601,23.3939,142.35,142.28,15.6028]
[1718381963893,7.7978,142.35,142.29,7.8007]
[1718381964099,7.7978,142.35,142.27,0.34]
[1718381964100,100.0,142.41,142.27,8.1417]
[1718381964296,141.8812,142.45,142.27,8.1417]
[1718381964297,100.0,142.39,142.27,0.17]
[1718381964465,100.0,142.39,142.23,42.38]
[1718381964466,5.1987,142.35,142.25,18.2067]
[1718381964672,0.68,142.38,142.26,0.17]
[1718381964869,0.68,142.38,142.23,42.38]
[1718381964870,2.6003,142.29,142.23,7.8039]
[1718381965077,100.17,142.36,142.23,2.6013]
[1718381965293,15.6011,142.3,142.24,2.6012]
[1718381965489,2.6007,142.27,142.21,38.6702]
[1718381965796,100.0,142.33,142.21,30.8652]
[1718381965970,0.68,142.32,142.21,30.8652]
[1718381966167,0.17,142.31,142.21,30.8652]
[1718381966369,7.8026,142.26,142.21,30.8652]
[1718381966621,18.2054,142.27,142.21,30.8652]
[1718381966771,0.17,142.31,142.21,30.8652]
[1718381966971,2.6008,142.26,142.21,30.8652]
[1718381967172,26.0072,142.27,142.21,33.4669]
[1718381967379,2.6008,142.26,142.21,30.8652]
[1718381967604,0.51,142.31,142.21,30.8652]
[1718381967768,26.0058,142.28,142.22,2.6015]
[1718381968103,2.6002,142.3,142.24,7.8034]
[1718381968276,2.6002,142.3,142.24,2.6011]
[1718381968476,7.8004,142.3,142.24,7.8034]
[1718381968688,2.5998,142.32,142.26,2.6007]
[1718381968879,100.0,142.4,142.22,42.38]
[1718381968880,18.1932,142.36,142.27,5.201]
[1718381969080,108.1794,142.42,142.26,0.34]
[1718381969081,100.0,142.4,142.26,0.34]
[1718381969317,208.1794,142.42,142.27,23.405]
[1718381969472,2.5998,142.32,142.26,2.9407]
[1718381969677,2.5994,142.34,142.28,2.6003]
[1718381969879,100.0,142.38,142.21,30.8652]
[1718381970090,7.7988,142.33,142.26,5.2015]
[1718381970276,18.199,142.32,142.25,23.749]
[1718381970471,23.3988,142.32,142.26,2.6008]
[1718381970776,7.8003,142.3,142.24,7.8033]
[1718381970996,7.8004,142.3,142.25,0.34]
[1718381971179,2.6001,142.3,142.25,0.34]
[1718381971378,25.9999,142.31,142.25,2.941]
[1718381971607,7.8001,142.31,142.25,2.941]
[1718381971775,21.18,142.41,142.25,2.941]
[1718381971776,5.1985,142.35,142.28,23.4038]
[1718381971977,108.1794,142.42,142.29,10.4007]
[1718381972173,108.1794,142.42,142.27,18.5446]
[1718381972174,5.199,142.34,142.27,18.5446]
[1718381972372,100.0,142.4,142.27,0.34]
[1718381972601,15.5977,142.33,142.27,2.9406]
[1718381972804,2.5999,142.31,142.25,2.6009]
[1718381973007,7.7999,142.31,142.25,2.6009]
[1718381973301,200.0,142.36,142.22,7.8045]
[1718381973475,0.34,142.35,142.21,30.8652]
[1718381973677,26.002,142.3,142.23,23.4123]
[1718381973916,26.002,142.3,142.24,2.6012]
[1718381974197,26.0022,142.3,142.24,2.6012]
[1718381974403,23.4014,142.3,142.23,13.0067]
[1718381974593,2.6003,142.3,142.24,7.8036]
[1718381974774,0.17,142.33,142.25,10.4042]
[1718381974775,5.1996,142.32,142.25,10.4042]
[1718381974978,23.3981,142.32,142.25,23.409]
[1718381975178,7.799,142.33,142.27,2.6006]
[1718381975408,108.1794,142.42,142.27,2.6006]
[1718381975409,25.995,142.34,142.28,2.6004]
[1718381975685,2.5991,142.36,142.3,2.6]
[1718381975908,2.5991,142.36,142.29,2.6001]
[1718381975909,2.5992,142.35,142.29,2.6001]
[1718381976178,7.7994,142.32,142.26,2.7708]